[Event "Titled Tuesday Blitz March 28 Early 2023"]
[White "Krysa, Leandro"]
[Black "Jaskolka, Tomasz"]
[WhiteFideId "116807"]
[BlackFideId "1170791"]
[WhiteElo "2485"]
[BlackElo "2155"]
[Result "1-0"]
[Round "09"]
[TimeControl "180+2"]
[Date "2023.03.28"]
[WhiteClock "0:00:07"]
[BlackClock "0:00:11"]

1. e4 {[%clk 0:03:00]}  c5 {[%clk 0:03:00]} 2. Nf3 {[%clk 0:03:00]}  e6 {[%clk 0:03:00]} 3. d4 {[%clk 0:03:00]}  cxd4 {[%clk 0:03:01]} 4. Nxd4 {[%clk 0:03:01]}  Nc6 {[%clk 0:02:57]} 5. Nc3 {[%clk 0:03:00]}  Qc7 {[%clk 0:02:57]} 6. g4 {[%clk 0:02:59]}  a6 {[%clk 0:02:55]} 7. Be3 {[%clk 0:02:55]}  Nge7 {[%clk 0:02:54]} 8. Nb3 {[%clk 0:02:43]}  Ng6 {[%clk 0:02:45]} 9. Qd2 {[%clk 0:02:36]}  h5 {[%clk 0:02:37]} 10. g5 {[%clk 0:02:35]}  Bd6 {[%clk 0:02:23]} 11. h4 {[%clk 0:02:17]}  Bf4 {[%clk 0:02:22]} 12. O-O-O {[%clk 0:02:09]}  b5 {[%clk 0:02:09]} 13. Kb1 {[%clk 0:02:01]}  Bxe3 {[%clk 0:02:00]} 14. Qxe3 {[%clk 0:02:00]}  O-O {[%clk 0:01:56]} 15. Be2 {[%clk 0:01:46]}  Nf4 {[%clk 0:01:52]} 16. Bf3 {[%clk 0:01:38]}  b4 {[%clk 0:01:15]} 17. Ne2 {[%clk 0:01:38]}  Nxe2 {[%clk 0:01:14]} 18. Bxe2 {[%clk 0:01:29]}  g6 {[%clk 0:01:14]} 19. f4 {[%clk 0:01:27]}  d5 {[%clk 0:01:11]} 20. e5 {[%clk 0:01:22]}  Ne7 {[%clk 0:01:04]} 21. Nd4 {[%clk 0:01:17]}  a5 {[%clk 0:01:03]} 22. Bxh5 {[%clk 0:01:03]}  gxh5 {[%clk 0:00:56]} 23. Qf3 {[%clk 0:01:03]}  Kg7 {[%clk 0:00:41]} 24. Qxh5 {[%clk 0:00:59]}  Rh8 {[%clk 0:00:42]} 25. Qf3 {[%clk 0:00:54]}  Nf5 {[%clk 0:00:34]} 26. h5 {[%clk 0:00:43]}  Nxd4 {[%clk 0:00:29]} 27. Rxd4 {[%clk 0:00:42]}  Qc5 {[%clk 0:00:26]} 28. Rd2 {[%clk 0:00:31]}  Bb7 {[%clk 0:00:24]} 29. h6+ {[%clk 0:00:28]}  Kf8 {[%clk 0:00:24]} 30. Rg2 {[%clk 0:00:24]}  Rc8 {[%clk 0:00:13]} 31. h7 {[%clk 0:00:15]}  a4 {[%clk 0:00:13]} 32. g6 {[%clk 0:00:12]}  fxg6 {[%clk 0:00:11]} 33. Qg4 {[%clk 0:00:12]}  Qe7 {[%clk 0:00:05]} 34. Qxg6 {[%clk 0:00:11]}  Qf7 {[%clk 0:00:06]} 35. Qh6+ {[%clk 0:00:11]}  Ke8 {[%clk 0:00:03]} 36. Rg7 {[%clk 0:00:11]}  Qf5 {[%clk 0:00:03]} 37. Rg8+ {[%clk 0:00:09]}  Kd7 {[%clk 0:00:03]} 38. Rxc8 {[%clk 0:00:09]}  Rxc8 {[%clk 0:00:03]} 39. Qh2 {[%clk 0:00:08]}  d4 {[%clk 0:00:02]} 40. h8=Q {[%clk 0:00:07]}  Rxh8 {[%clk 0:00:02]} 41. Qxh8 {[%clk 0:00:07]}  Bxh1 {[%clk 0:00:02]} 42. Qxh1 {[%clk 0:00:07]}  b3 {[%clk 0:00:03]} 43. axb3 {[%clk 0:00:07]}  axb3 {[%clk 0:00:03]} 44. Qh2 {[%clk 0:00:07]}  d3 {[%clk 0:00:01]} 45. cxd3 {[%clk 0:00:03]}  Qxd3+ {[%clk 0:00:02]} 46. Kc1 {[%clk 0:00:04]}  Qc4+ {[%clk 0:00:02]} 47. Kd1 {[%clk 0:00:04]}  Qd3+ {[%clk 0:00:03]} 48. Qd2 {[%clk 0:00:03]}  Qd5 {[%clk 0:00:01]} 49. Qxd5+ {[%clk 0:00:03]}  exd5 {[%clk 0:00:02]} 50. Kd2 {[%clk 0:00:04]}  Ke6 {[%clk 0:00:03]} 51. Kc3 {[%clk 0:00:04]}  d4+ {[%clk 0:00:04]} 52. Kxd4 {[%clk 0:00:04]}  Kf5 {[%clk 0:00:05]} 53. Kd5 {[%clk 0:00:05]}  Kxf4 {[%clk 0:00:05]} 54. e6 {[%clk 0:00:06]}  Ke3 {[%clk 0:00:05]} 55. e7 {[%clk 0:00:07]}  Kd3 {[%clk 0:00:06]} 56. e8=Q {[%clk 0:00:07]}  Kc2 {[%clk 0:00:07]} 57. Qe2+ {[%clk 0:00:06]}  Kb1 {[%clk 0:00:07]} 58. Kc4 {[%clk 0:00:06]}  Ka2 {[%clk 0:00:07]} 59. Kc3 {[%clk 0:00:07]}  Ka1 {[%clk 0:00:08]} 60. Qd1+ {[%clk 0:00:06]}  Ka2 {[%clk 0:00:08]} 61. Qxb3+ {[%clk 0:00:07]}  Ka1 {[%clk 0:00:09]} 62. Qa3+ {[%clk 0:00:06]}  Kb1 {[%clk 0:00:10]} 63. Qd6 {[%clk 0:00:07]}  Ka2 {[%clk 0:00:10]} 64. b4 {[%clk 0:00:07]}  Ka3 {[%clk 0:00:10]} 65. b5+ {[%clk 0:00:07]}  Ka4 {[%clk 0:00:11]} 66. Qb4# {[%clk 0:00:07]} 1-0


[Site "https://www.chess.com"]

[Event "Titled Tuesday Blitz March 28 Early 2023"]
[White "Pein, Jonathan"]
[Black "Zubritskiy, Artyom"]
[WhiteFideId "417092"]
[BlackFideId "4181247"]
[WhiteElo "2151"]
[BlackElo "2419"]
[Result "0-1"]
[Round "09"]
[TimeControl "180+2"]
[Date "2023.03.28"]
[WhiteClock "0:00:27"]
[BlackClock "0:00:30"]

1. e4 {[%clk 0:03:00]}  c5 {[%clk 0:03:00]} 2. Nf3 {[%clk 0:03:00]}  Nf6 {[%clk 0:03:00]} 3. d3 {[%clk 0:02:56]}  Nc6 {[%clk 0:03:00]} 4. g3 {[%clk 0:02:57]}  d5 {[%clk 0:03:00]} 5. exd5 {[%clk 0:02:58]}  Nxd5 {[%clk 0:03:01]} 6. Bg2 {[%clk 0:02:58]}  g6 {[%clk 0:03:01]} 7. O-O {[%clk 0:02:59]}  Bg7 {[%clk 0:03:02]} 8. c3 {[%clk 0:02:53]}  O-O {[%clk 0:03:02]} 9. Nbd2 {[%clk 0:02:53]}  b6 {[%clk 0:03:01]} 10. Re1 {[%clk 0:02:49]}  Bb7 {[%clk 0:02:59]} 11. Nc4 {[%clk 0:02:49]}  Qc7 {[%clk 0:02:58]} 12. Qc2 {[%clk 0:02:42]}  Rad8 {[%clk 0:02:56]} 13. a4 {[%clk 0:02:35]}  a6 {[%clk 0:02:43]} 14. Ne3 {[%clk 0:02:26]}  Nf6 {[%clk 0:02:24]} 15. Nc4 {[%clk 0:02:25]}  Nd5 {[%clk 0:02:24]} 16. Ne3 {[%clk 0:02:25]}  Nxe3 {[%clk 0:01:53]} 17. Bxe3 {[%clk 0:02:26]}  e5 {[%clk 0:01:54]} 18. Bd2 {[%clk 0:02:08]}  h6 {[%clk 0:01:46]} 19. h4 {[%clk 0:02:07]}  Kh7 {[%clk 0:01:43]} 20. Rac1 {[%clk 0:01:55]}  Qd7 {[%clk 0:01:40]} 21. Qb3 {[%clk 0:01:53]}  Qc7 {[%clk 0:01:34]} 22. Qc2 {[%clk 0:01:53]}  Qd6 {[%clk 0:01:31]} 23. h5 {[%clk 0:01:41]}  Qxd3 {[%clk 0:01:26]} 24. Qb3 {[%clk 0:01:38]}  Na5 {[%clk 0:01:19]} 25. Qxb6 {[%clk 0:01:37]}  Bxf3 {[%clk 0:01:20]} 26. hxg6+ {[%clk 0:01:00]}  fxg6 {[%clk 0:01:18]} 27. Be3 {[%clk 0:00:46]}  Nc4 {[%clk 0:01:15]} 28. Qxc5 {[%clk 0:00:43]}  Bxg2 {[%clk 0:01:10]} 29. Kxg2 {[%clk 0:00:41]}  Nxb2 {[%clk 0:01:02]} 30. Rh1 {[%clk 0:00:41]}  Qe4+ {[%clk 0:01:01]} 31. Kg1 {[%clk 0:00:38]}  Nd3 {[%clk 0:00:44]} 32. Qc7 {[%clk 0:00:32]}  Nxc1 {[%clk 0:00:31]} 33. Rxh6+ {[%clk 0:00:29]}  Kg8 {[%clk 0:00:31]} 34. Rh4 {[%clk 0:00:28]}  Rd1+ {[%clk 0:00:30]} 35. Kh2 {[%clk 0:00:27]}  Rh1# {[%clk 0:00:30]} 0-1


[Site "https://www.chess.com"]

[Event "Titled Tuesday Blitz March 28 Early 2023"]
[White "Salman, Pavel"]
[Black "Tregubov, Pavel V."]
[WhiteFideId "24153753"]
[BlackFideId "4115341"]
[WhiteElo "2187"]
[BlackElo "2425"]
[Result "0-1"]
[Round "09"]
[TimeControl "180+2"]
[Date "2023.03.28"]
[WhiteClock "0:00:02"]
[BlackClock "0:00:11"]

1. d4 {[%clk 0:02:59]}  Nf6 {[%clk 0:02:59]} 2. Nc3 {[%clk 0:02:59]}  d5 {[%clk 0:02:59]} 3. Bf4 {[%clk 0:03:00]}  c5 {[%clk 0:02:55]} 4. e4 {[%clk 0:03:00]}  dxe4 {[%clk 0:02:39]} 5. dxc5 {[%clk 0:02:55]}  Qxd1+ {[%clk 0:02:31]} 6. Rxd1 {[%clk 0:02:54]}  a6 {[%clk 0:02:12]} 7. Nge2 {[%clk 0:02:42]}  Nc6 {[%clk 0:02:06]} 8. Ng3 {[%clk 0:02:39]}  e5 {[%clk 0:02:00]} 9. Bg5 {[%clk 0:02:39]}  Bxc5 {[%clk 0:01:53]} 10. Bxf6 {[%clk 0:02:37]}  gxf6 {[%clk 0:01:53]} 11. Ngxe4 {[%clk 0:02:37]}  Be7 {[%clk 0:01:53]} 12. Nd6+ {[%clk 0:02:34]}  Bxd6 {[%clk 0:01:52]} 13. Rxd6 {[%clk 0:02:35]}  Ke7 {[%clk 0:01:50]} 14. Rd2 {[%clk 0:02:33]}  Be6 {[%clk 0:01:50]} 15. Be2 {[%clk 0:02:31]}  Rhd8 {[%clk 0:01:49]} 16. Bf3 {[%clk 0:02:25]}  Nd4 {[%clk 0:01:36]} 17. Bxb7 {[%clk 0:02:05]}  Rab8 {[%clk 0:01:36]} 18. Bxa6 {[%clk 0:02:06]}  Rxb2 {[%clk 0:01:36]} 19. Bd3 {[%clk 0:02:02]}  Rc8 {[%clk 0:01:29]} 20. Ne2 {[%clk 0:01:47]}  Nxc2+ {[%clk 0:01:27]} 21. Bxc2 {[%clk 0:01:47]}  Rcxc2 {[%clk 0:01:26]} 22. Rxc2 {[%clk 0:01:44]}  Rxc2 {[%clk 0:01:26]} 23. Ng3 {[%clk 0:01:33]}  Bc4 {[%clk 0:01:14]} 24. h4 {[%clk 0:01:26]}  Rxa2 {[%clk 0:01:09]} 25. h5 {[%clk 0:01:23]}  Ke6 {[%clk 0:01:04]} 26. Rh4 {[%clk 0:01:20]}  Bd5 {[%clk 0:01:04]} 27. Rb4 {[%clk 0:01:09]}  Ra6 {[%clk 0:00:43]} 28. Kf1 {[%clk 0:01:05]}  f5 {[%clk 0:00:42]} 29. Kg1 {[%clk 0:01:00]}  f4 {[%clk 0:00:41]} 30. Ne2 {[%clk 0:00:58]}  Kf5 {[%clk 0:00:35]} 31. Nc3 {[%clk 0:00:52]}  Bc6 {[%clk 0:00:31]} 32. Rc4 {[%clk 0:00:39]}  Kg5 {[%clk 0:00:30]} 33. Rc5 {[%clk 0:00:34]}  f6 {[%clk 0:00:31]} 34. f3 {[%clk 0:00:25]}  Kxh5 {[%clk 0:00:30]} 35. Kh2 {[%clk 0:00:25]}  Kg6 {[%clk 0:00:30]} 36. Nd1 {[%clk 0:00:22]}  Bd7 {[%clk 0:00:27]} 37. Nc3 {[%clk 0:00:20]}  Rc6 {[%clk 0:00:26]} 38. Rxc6 {[%clk 0:00:20]}  Bxc6 {[%clk 0:00:26]} 39. Kh3 {[%clk 0:00:21]}  Kg5 {[%clk 0:00:25]} 40. Ne2 {[%clk 0:00:20]}  h5 {[%clk 0:00:24]} 41. Nc3 {[%clk 0:00:19]}  h4 {[%clk 0:00:24]} 42. Ne2 {[%clk 0:00:19]}  f5 {[%clk 0:00:20]} 43. Kh2 {[%clk 0:00:19]}  e4 {[%clk 0:00:20]} 44. Nd4 {[%clk 0:00:19]}  Bd5 {[%clk 0:00:20]} 45. Kg1 {[%clk 0:00:20]}  Kf6 {[%clk 0:00:20]} 46. fxe4 {[%clk 0:00:18]}  fxe4 {[%clk 0:00:19]} 47. Ne2 {[%clk 0:00:19]}  Kg5 {[%clk 0:00:19]} 48. Kf2 {[%clk 0:00:19]}  Kg4 {[%clk 0:00:19]} 49. Nd4 {[%clk 0:00:19]}  e3+ {[%clk 0:00:19]} 50. Kg1 {[%clk 0:00:20]}  Be4 {[%clk 0:00:17]} 51. Kf1 {[%clk 0:00:18]}  Kg3 {[%clk 0:00:14]} 52. Ne2+ {[%clk 0:00:16]}  Kg4 {[%clk 0:00:14]} 53. Nd4 {[%clk 0:00:17]}  f3 {[%clk 0:00:14]} 54. gxf3+ {[%clk 0:00:17]}  Bxf3 {[%clk 0:00:15]} 55. Kg1 {[%clk 0:00:16]}  e2 {[%clk 0:00:13]} 56. Nc2 {[%clk 0:00:16]}  h3 {[%clk 0:00:12]} 57. Kh2 {[%clk 0:00:15]}  Bg2 {[%clk 0:00:12]} 58. Ne1 {[%clk 0:00:13]}  Kf4 {[%clk 0:00:12]} 59. Kg1 {[%clk 0:00:13]}  Ke3 {[%clk 0:00:12]} 60. Kh2 {[%clk 0:00:02]}  Kd2 {[%clk 0:00:11]} 0-1


[Site "https://www.chess.com"]

[Event "Titled Tuesday Blitz March 28 Early 2023"]
[White "Cuenca Jimenez, Jose Fernando"]
[Black "Manukian, Artak"]
[WhiteFideId "2255570"]
[BlackFideId "13301373"]
[WhiteElo "2429"]
[BlackElo "2130"]
[Result "1-0"]
[Round "09"]
[TimeControl "180+2"]
[Date "2023.03.28"]
[WhiteClock "0:00:07"]
[BlackClock "0:00:17"]

1. c4 {[%clk 0:03:00]}  Nf6 {[%clk 0:02:58]} 2. Nc3 {[%clk 0:02:58]}  g6 {[%clk 0:02:59]} 3. e4 {[%clk 0:02:58]}  d6 {[%clk 0:02:58]} 4. d4 {[%clk 0:02:58]}  Bg7 {[%clk 0:02:59]} 5. h3 {[%clk 0:02:59]}  O-O {[%clk 0:03:00]} 6. Be3 {[%clk 0:02:59]}  e5 {[%clk 0:03:00]} 7. d5 {[%clk 0:02:59]}  a5 {[%clk 0:03:00]} 8. g4 {[%clk 0:02:58]}  Na6 {[%clk 0:03:00]} 9. Nge2 {[%clk 0:02:58]}  Nc5 {[%clk 0:03:00]} 10. Ng3 {[%clk 0:02:58]}  c6 {[%clk 0:02:58]} 11. Qd2 {[%clk 0:02:55]}  cxd5 {[%clk 0:02:58]} 12. cxd5 {[%clk 0:02:55]}  a4 {[%clk 0:02:57]} 13. f3 {[%clk 0:02:43]}  Qa5 {[%clk 0:02:54]} 14. Nb5 {[%clk 0:02:32]}  Rd8 {[%clk 0:02:47]} 15. Rc1 {[%clk 0:02:07]}  Ne8 {[%clk 0:02:40]} 16. Be2 {[%clk 0:01:57]}  Bf8 {[%clk 0:02:36]} 17. h4 {[%clk 0:01:51]}  Qxd2+ {[%clk 0:02:29]} 18. Kxd2 {[%clk 0:01:51]}  b6 {[%clk 0:02:23]} 19. h5 {[%clk 0:01:45]}  Ba6 {[%clk 0:02:12]} 20. Na3 {[%clk 0:01:43]}  Nc7 {[%clk 0:02:06]} 21. Bxa6 {[%clk 0:01:34]}  N7xa6 {[%clk 0:02:06]} 22. Nb5 {[%clk 0:01:28]}  Rdc8 {[%clk 0:02:02]} 23. Ne2 {[%clk 0:01:04]}  Nb4 {[%clk 0:01:56]} 24. Nec3 {[%clk 0:00:54]}  Nbd3 {[%clk 0:01:48]} 25. Rb1 {[%clk 0:00:49]}  Nf4 {[%clk 0:01:43]} 26. Na3 {[%clk 0:00:40]}  g5 {[%clk 0:01:36]} 27. Ncb5 {[%clk 0:00:38]}  Ra5 {[%clk 0:01:23]} 28. Rhc1 {[%clk 0:00:34]}  Be7 {[%clk 0:01:15]} 29. Rc3 {[%clk 0:00:31]}  Kf8 {[%clk 0:01:11]} 30. b4 {[%clk 0:00:28]}  axb3 {[%clk 0:01:11]} 31. axb3 {[%clk 0:00:28]}  Raa8 {[%clk 0:01:09]} 32. b4 {[%clk 0:00:24]}  Nd7 {[%clk 0:00:57]} 33. Rc6 {[%clk 0:00:22]}  Ke8 {[%clk 0:00:49]} 34. Rbc1 {[%clk 0:00:19]}  Kd8 {[%clk 0:00:47]} 35. Rxc8+ {[%clk 0:00:13]}  Rxc8 {[%clk 0:00:48]} 36. Rxc8+ {[%clk 0:00:13]}  Kxc8 {[%clk 0:00:49]} 37. Na7+ {[%clk 0:00:13]}  Kb7 {[%clk 0:00:48]} 38. Nc6 {[%clk 0:00:14]}  Bf6 {[%clk 0:00:46]} 39. Nb5 {[%clk 0:00:13]}  h6 {[%clk 0:00:30]} 40. Nxd6+ {[%clk 0:00:13]}  Kc7 {[%clk 0:00:30]} 41. Ne8+ {[%clk 0:00:13]}  Kb7 {[%clk 0:00:28]} 42. Nxf6 {[%clk 0:00:14]}  Nxf6 {[%clk 0:00:28]} 43. Nxe5 {[%clk 0:00:14]}  b5 {[%clk 0:00:25]} 44. Nxf7 {[%clk 0:00:14]}  Ng8 {[%clk 0:00:24]} 45. Bxf4 {[%clk 0:00:12]}  gxf4 {[%clk 0:00:24]} 46. g5 {[%clk 0:00:13]}  hxg5 {[%clk 0:00:23]} 47. h6 {[%clk 0:00:13]}  g4 {[%clk 0:00:20]} 48. fxg4 {[%clk 0:00:13]}  Nf6 {[%clk 0:00:20]} 49. Ng5 {[%clk 0:00:09]}  f3 {[%clk 0:00:19]} 50. h7 {[%clk 0:00:07]}  f2 {[%clk 0:00:17]} 51. Ke2 {[%clk 0:00:07]} 1-0


[Site "https://www.chess.com"]

[Event "Titled Tuesday Blitz March 28 Early 2023"]
[White "Kadam, Om Manish"]
[Black "Miszler, Levente"]
[WhiteFideId "45076294"]
[BlackFideId "763276"]
[WhiteElo "2221"]
[BlackElo "2176"]
[Result "0-1"]
[Round "09"]
[TimeControl "180+2"]
[Date "2023.03.28"]
[WhiteClock "0:01:00"]
[BlackClock "0:01:58"]

1. Nf3 {[%clk 0:02:27]}  Nf6 {[%clk 0:02:55]} 2. b3 {[%clk 0:02:25]}  g6 {[%clk 0:02:53]} 3. Bb2 {[%clk 0:02:25]}  Bg7 {[%clk 0:02:54]} 4. g3 {[%clk 0:02:26]}  O-O {[%clk 0:02:55]} 5. Bg2 {[%clk 0:02:26]}  d5 {[%clk 0:02:55]} 6. O-O {[%clk 0:02:27]}  c5 {[%clk 0:02:56]} 7. e3 {[%clk 0:02:27]}  Nc6 {[%clk 0:02:56]} 8. d4 {[%clk 0:02:27]}  Ne4 {[%clk 0:02:54]} 9. Nbd2 {[%clk 0:02:27]}  Nxd2 {[%clk 0:02:52]} 10. Qxd2 {[%clk 0:02:27]}  cxd4 {[%clk 0:02:48]} 11. exd4 {[%clk 0:02:27]}  Bf5 {[%clk 0:02:47]} 12. c4 {[%clk 0:02:26]}  Be4 {[%clk 0:02:41]} 13. Rad1 {[%clk 0:02:23]}  Rc8 {[%clk 0:02:40]} 14. Rfe1 {[%clk 0:02:23]}  Re8 {[%clk 0:02:36]} 15. Qe2 {[%clk 0:02:18]}  Nb4 {[%clk 0:02:31]} 16. Rd2 {[%clk 0:02:00]}  Qa5 {[%clk 0:02:18]} 17. Bc3 {[%clk 0:01:54]}  Qa3 {[%clk 0:02:17]} 18. Ra1 {[%clk 0:01:35]}  Nc6 {[%clk 0:02:06]} 19. Bb2 {[%clk 0:01:33]}  Qa6 {[%clk 0:02:05]} 20. a3 {[%clk 0:01:29]}  Na5 {[%clk 0:02:03]} 21. Qe3 {[%clk 0:01:02]}  Bxf3 {[%clk 0:01:58]} 22. Qxf3 {[%clk 0:01:00]}  dxc4 {[%clk 0:01:58]} 23. bxc4 {[%clk 0:01:00]}  Nxc4 {[%clk 0:01:58]} 24. Bf1 {[%clk 0:01:00]}  Nxd2 {[%clk 0:01:58]} 0-1


[Site "https://www.chess.com"]

[Event "Titled Tuesday Blitz March 28 Early 2023"]
[White "Fernandez Garcia, Gumersindo"]
[Black "Tokhirjonova, Gulrukhbegim"]
[WhiteFideId "24516740"]
[BlackFideId "14203626"]
[WhiteElo "2093"]
[BlackElo "2268"]
[Result "0-1"]
[Round "09"]
[TimeControl "180+2"]
[Date "2023.03.28"]
[WhiteClock "0:00:20"]
[BlackClock "0:00:38"]

1. d4 {[%clk 0:03:00]}  Nf6 {[%clk 0:02:59]} 2. c4 {[%clk 0:02:57]}  e6 {[%clk 0:02:59]} 3. Nf3 {[%clk 0:02:56]}  b6 {[%clk 0:02:58]} 4. g3 {[%clk 0:02:56]}  Bb7 {[%clk 0:02:58]} 5. Bg2 {[%clk 0:02:57]}  Bb4+ {[%clk 0:02:58]} 6. Bd2 {[%clk 0:02:57]}  Bxd2+ {[%clk 0:02:56]} 7. Nbxd2 {[%clk 0:02:57]}  O-O {[%clk 0:02:57]} 8. O-O {[%clk 0:02:57]}  d6 {[%clk 0:02:57]} 9. Qc2 {[%clk 0:02:57]}  Nbd7 {[%clk 0:02:57]} 10. b4 {[%clk 0:02:54]}  c5 {[%clk 0:02:54]} 11. dxc5 {[%clk 0:02:48]}  dxc5 {[%clk 0:02:53]} 12. b5 {[%clk 0:02:47]}  Qc7 {[%clk 0:02:46]} 13. e3 {[%clk 0:02:34]}  h6 {[%clk 0:02:46]} 14. a4 {[%clk 0:02:28]}  Rfe8 {[%clk 0:02:44]} 15. a5 {[%clk 0:02:28]}  bxa5 {[%clk 0:02:41]} 16. Nb3 {[%clk 0:02:25]}  Be4 {[%clk 0:02:38]} 17. Qc3 {[%clk 0:02:23]}  a6 {[%clk 0:02:27]} 18. Rxa5 {[%clk 0:02:09]}  axb5 {[%clk 0:02:26]} 19. Rxb5 {[%clk 0:02:07]}  Ra2 {[%clk 0:02:21]} 20. Nfd2 {[%clk 0:01:59]}  Bxg2 {[%clk 0:02:02]} 21. Kxg2 {[%clk 0:02:00]}  Qc6+ {[%clk 0:02:01]} 22. Kg1 {[%clk 0:01:50]}  Rea8 {[%clk 0:01:58]} 23. h3 {[%clk 0:01:43]}  h5 {[%clk 0:01:45]} 24. Ra1 {[%clk 0:01:37]}  Rxa1+ {[%clk 0:01:43]} 25. Nxa1 {[%clk 0:01:37]}  Ne4 {[%clk 0:01:37]} 26. Nxe4 {[%clk 0:01:28]}  Qxe4 {[%clk 0:01:38]} 27. Nb3 {[%clk 0:01:28]}  Ne5 {[%clk 0:01:14]} 28. Nd2 {[%clk 0:01:19]}  Qf5 {[%clk 0:01:01]} 29. Kg2 {[%clk 0:01:08]}  Nd3 {[%clk 0:00:42]} 30. Nf3 {[%clk 0:00:54]}  Ra2 {[%clk 0:00:39]} 31. Rb8+ {[%clk 0:00:28]}  Kh7 {[%clk 0:00:38]} 32. Ng5+ {[%clk 0:00:20]}  Kg6 {[%clk 0:00:38]} 0-1


[Site "https://www.chess.com"]

[Event "Titled Tuesday Blitz March 28 Early 2023"]
[White "Lenaerts, Lennert"]
[Black "Devaev, Alexander"]
[WhiteFideId "211435"]
[BlackFideId "4169395"]
[WhiteElo "2334"]
[BlackElo "2225"]
[Result "1-0"]
[Round "09"]
[TimeControl "180+2"]
[Date "2023.03.28"]
[WhiteClock "0:00:18"]
[BlackClock "0:00:10"]

1. d4 {[%clk 0:02:58]}  Nf6 {[%clk 0:02:56]} 2. c4 {[%clk 0:02:57]}  e6 {[%clk 0:02:56]} 3. Nc3 {[%clk 0:02:58]}  Bb4 {[%clk 0:02:56]} 4. g3 {[%clk 0:02:58]}  c5 {[%clk 0:02:53]} 5. Nf3 {[%clk 0:02:58]}  cxd4 {[%clk 0:02:53]} 6. Nxd4 {[%clk 0:02:59]}  Nc6 {[%clk 0:02:54]} 7. Bg2 {[%clk 0:02:59]}  Qb6 {[%clk 0:02:53]} 8. Nxc6 {[%clk 0:02:55]}  bxc6 {[%clk 0:02:51]} 9. O-O {[%clk 0:02:55]}  O-O {[%clk 0:02:52]} 10. Qc2 {[%clk 0:02:55]}  d5 {[%clk 0:02:43]} 11. Bg5 {[%clk 0:02:52]}  Bxc3 {[%clk 0:01:41]} 12. Qxc3 {[%clk 0:02:51]}  Ne4 {[%clk 0:01:38]} 13. Bxe4 {[%clk 0:02:50]}  dxe4 {[%clk 0:01:39]} 14. c5 {[%clk 0:02:49]}  Qb5 {[%clk 0:01:36]} 15. Rfe1 {[%clk 0:02:38]}  f6 {[%clk 0:01:36]} 16. Be3 {[%clk 0:02:36]}  e5 {[%clk 0:01:33]} 17. Rad1 {[%clk 0:02:35]}  Be6 {[%clk 0:01:33]} 18. b3 {[%clk 0:02:35]}  Bd5 {[%clk 0:01:30]} 19. Rb1 {[%clk 0:02:30]}  h6 {[%clk 0:01:19]} 20. a4 {[%clk 0:02:30]}  Qb7 {[%clk 0:01:19]} 21. b4 {[%clk 0:02:30]}  a6 {[%clk 0:01:20]} 22. Red1 {[%clk 0:02:29]}  Rfd8 {[%clk 0:01:18]} 23. Rd2 {[%clk 0:02:21]}  Qf7 {[%clk 0:01:16]} 24. b5 {[%clk 0:02:06]}  axb5 {[%clk 0:01:16]} 25. axb5 {[%clk 0:02:07]}  cxb5 {[%clk 0:01:15]} 26. Rxb5 {[%clk 0:02:07]}  Bc4 {[%clk 0:01:10]} 27. Rb1 {[%clk 0:01:55]}  Rxd2 {[%clk 0:01:09]} 28. Qxd2 {[%clk 0:01:56]}  Qd5 {[%clk 0:01:03]} 29. Qxd5+ {[%clk 0:01:19]}  Bxd5 {[%clk 0:01:02]} 30. Rc1 {[%clk 0:01:20]}  Bc6 {[%clk 0:00:58]} 31. Kf1 {[%clk 0:01:13]}  Ra2 {[%clk 0:00:58]} 32. h3 {[%clk 0:01:10]}  Kf7 {[%clk 0:00:53]} 33. Ke1 {[%clk 0:01:10]}  Ke6 {[%clk 0:00:51]} 34. Rd1 {[%clk 0:01:09]}  Bb5 {[%clk 0:00:49]} 35. Rd6+ {[%clk 0:01:07]}  Ke7 {[%clk 0:00:50]} 36. Rd2 {[%clk 0:01:08]}  Ra1+ {[%clk 0:00:49]} 37. Rd1 {[%clk 0:01:08]}  Ra2 {[%clk 0:00:50]} 38. Rd2 {[%clk 0:01:09]}  Ra4 {[%clk 0:00:44]} 39. g4 {[%clk 0:01:03]}  Bd7 {[%clk 0:00:43]} 40. Rb2 {[%clk 0:01:00]}  Rc4 {[%clk 0:00:38]} 41. Kd2 {[%clk 0:00:56]}  h5 {[%clk 0:00:37]} 42. gxh5 {[%clk 0:00:55]}  Bxh3 {[%clk 0:00:37]} 43. Rb7+ {[%clk 0:00:54]}  Kf8 {[%clk 0:00:35]} 44. Rc7 {[%clk 0:00:43]}  Bg4 {[%clk 0:00:28]} 45. h6 {[%clk 0:00:41]}  gxh6 {[%clk 0:00:29]} 46. Bxh6+ {[%clk 0:00:42]}  Ke8 {[%clk 0:00:29]} 47. Bg7 {[%clk 0:00:40]}  Ra4 {[%clk 0:00:17]} 48. Bxf6 {[%clk 0:00:21]}  Ra2+ {[%clk 0:00:18]} 49. Kc3 {[%clk 0:00:21]}  Rxe2 {[%clk 0:00:12]} 50. Re7+ {[%clk 0:00:17]}  Kf8 {[%clk 0:00:12]} 51. Rxe5 {[%clk 0:00:17]}  Rxf2 {[%clk 0:00:12]} 52. Be7+ {[%clk 0:00:18]}  Kf7 {[%clk 0:00:11]} 53. Rxe4 {[%clk 0:00:19]}  Be6 {[%clk 0:00:11]} 54. Bd6 {[%clk 0:00:18]}  Rf3+ {[%clk 0:00:11]} 55. Kd4 {[%clk 0:00:17]}  Rf1 {[%clk 0:00:11]} 56. Rh4 {[%clk 0:00:17]}  Rd1+ {[%clk 0:00:11]} 57. Kc3 {[%clk 0:00:18]}  Rc1+ {[%clk 0:00:10]} 58. Kb4 {[%clk 0:00:18]}  Rc4+ {[%clk 0:00:10]} 59. Rxc4 {[%clk 0:00:17]}  Bxc4 {[%clk 0:00:10]} 60. Kxc4 {[%clk 0:00:18]} 1-0


[Site "https://www.chess.com"]